[Event "GER-ch Youth-U16 2022"]
[Site "Willingen"]
[Date "2022.06.10"]
[Round "8.5"]
[White "Heinrich, John"]
[Black "Hommer, Jeremy"]
[Result "1/2-1/2"]
[ECO "B15"]
[WhiteElo "2011"]
[BlackElo "2152"]
[Annotator "TA"]
[PlyCount "61"]
[EventDate "2022.06.05"]
[EventType "swiss"]
[EventRounds "9"]
[EventCountry "GER"]
[SourceTitle "playchess.com"]
[Source "ChessBase"]
[SourceQuality "1"]
[TimeControl "40/4500+30:900+30"]

{[%evp 14,61,40,31,50,22,42,50,48,-5,-2,-10,0,-14,-14,-29,-18,-16,-8,-10,0,-22,-12,-16,-9,-27,0,0,0,0,0,-24,-26,-17,-31,-40,-33,-33,-31,-31,-31,-31,-31,-34,-31,-42,-10,-10,0,7]} 1. e4 {[%emt 0:00:00]} c6 {[%emt 0:00:00]} 2. d4 {[%emt 0:00:00]} d5 {[%emt 0:00:00]} 3. Nd2 {[%emt 0:00:00]} dxe4 {[%emt 0:00:00]} 4. Nxe4 {[%emt 0:00:00]} Nf6 {[%emt 0:00:00]} 5. Nxf6+ {[%emt 0:00:00]} exf6 {[%emt 0:00:00]} 6. c3 {[%emt 0:00:00]} Bd6 {[%emt 0:00:00]} 7. Bd3 {[%emt 0:00:00]} O-O {[%emt 0:00:00]} 8. Qc2 {[%emt 0:00:00] Active counter play!} c5 {[%emt 0:00:00] [#] B15: Caro-Kann: 3 Nc3: 3...g6 and 3...dxe4 4 Nxe4 Nf6 5 Nxf6+ exf6.} 9. Bxh7+ $146 {[%emt 0:03:14]} ({Predecessor:} 9. Ne2 g6 10. Be3 Qc7 11. dxc5 Bxc5 12. Bxc5 Qxc5 13. O-O Nc6 14. Rad1 Ne5 15. Nd4 Bg4 16. Be2 {½-½ (185) Sevian,S (2660)-Van Foreest,J (2682) Chess.com INT 2020}) 9... Kh8 {[%emt 0:00:00] [#] Strongly threatening ...g6.} 10. dxc5 {[%emt 0:07:52]} Bxc5 {[%emt 0:00:00][%cal Of6f5] Hoping for ...f5! White is slightly better.} 11. Ne2 {[%emt 0:06:47]} ({Better is} 11. Be4 $14) 11... g6 $11 {[%emt 0:00:00]} 12. Bxg6 {[%emt 0:00:21]} fxg6 {[%emt 0:00:00]} 13. Qxg6 {[%emt 0:00:21] aiming for Qh5+.} Qe8 {[%emt 0:03:38]} 14. Qh6+ {[%emt 0:02:14]} Kg8 {[%emt 0:00:04]} 15. O-O {[%emt 0:00:50]} Bf5 {[%emt 0:04:43]} 16. Be3 {[%emt 0:23:11] The board is on fire.} Na6 {[%emt 0:09:57]} 17. Nd4 {[%emt 0:07:01]} Bxd4 {[%emt 0:07:02]} 18. Bxd4 {[%emt 0:00:41]} Qg6 {[%emt 0:00:26]} 19. Qf4 {[%emt 0:01:28]} Rae8 {[%emt 0:06:00]} (19... Rf7 $5 {[%cal Rf7g7]}) 20. Rfe1 {[%emt 0:01:17]} b6 {[%emt 0:15:28]} 21. a4 {[%emt 0:06:51]} Qg5 {[%emt 0:16:03]} 22. Qf3 {[%emt 0:06:45][%cal Oh2h4]} Nc5 {[%emt 0:00:41]} 23. Bxc5 {[%emt 0:03:06]} bxc5 {[%emt 0:00:07]} 24. Qd5+ {[%emt 0:01:24] [#]} Be6 $1 {[%emt 0:00:43]} 25. Qxg5+ {[%emt 0:00:19]} fxg5 {[%emt 0:00:01]} 26. Re5 {[%emt 0:00:16][%csl LRc5,LRg5]} Rf5 {[%emt 0:01:50]} 27. Rae1 {[%emt 0:00:30] Rxf5 is the strong threat.} Kf7 {[%emt 0:00:38]} 28. f3 {[%emt 0:07:02]} Kf6 {[%emt 0:06:51]} 29. R5e4 {[%emt 0:00:44]} Re7 {[%emt 0:02:38]} 30. h4 {[%emt 0:01:42]} Rd5 {[%emt 0:09:05]} 31. hxg5+ {[%emt 0:01:11] Weighted Error Value: White=0.11 (very precise) /Black=0.07 (flawless)} 1/2-1/2

[Event "GER-ch Youth-U16 2022"]
[Site "Willingen"]
[Date "2022.06.10"]
[Round "8.6"]
[White "Stork, Christopher"]
[Black "Trushko, Andrii"]
[Result "0-1"]
[ECO "B12"]
[WhiteElo "1994"]
[BlackElo "1897"]
[Annotator "TA"]
[PlyCount "182"]
[EventDate "2022.06.05"]
[EventType "swiss"]
[EventRounds "9"]
[EventCountry "GER"]
[SourceTitle "playchess.com"]
[Source "ChessBase"]
[SourceQuality "1"]
[TimeControl "40/4500+30:900+30"]

{[%evp 9,182,0,72,72,76,85,81,79,87,61,50,43,49,-12,36,38,42,36,35,20,80,75,68,73,65,0,20,16,16,7,16,0,50,16,47,41,100,27,21,29,29,28,29,0,0,0,0,-27,0,0,0,0,0,0,0,0,0,-29,0,-104,-103,-137,-127,-129,-118,-133,-100,-115,-87,-85,-81,-79,0,0,0,-6,0,0,0,0,-9,-10,-4,-7,0,0,0,-81,-81,-198,-198,-198,-198,-197,-195,-193,-193,-193,-193,-193,-196,-396,-396,-395,-387,-396,-304,-372,-348,-362,-211,-265,-235,-374,-206,-391,-374,-560,-551,-927,-912,-818,-795,-1606,-1590,-12837,-12834,-12841,-12840,-12838,-1351,-1454,-1394,-12844,-1106,-1115,-939,-865,-830,-12839,-12839,-12842,-12839,-12841,-12841,-12842,-12842,-12843,-12843,-12843,-12843,-12845,-12844,-12846,-12845,-12846,-12845,-12846,-12843,-12847,-12845,-12846,-12846,-12847,-12846,-12849,-12846,-12847,-12847,-12847,-12848,-12848,-12849,-29998,-29999]} 1. e4 {[%emt 0:00:00]} c6 {[%emt 0:00:00]} 2. d4 {[%emt 0:00:00][%cal Bd2d4,Bd4c5][%mdl 32]} d5 {[%emt 0:00:00]} 3. e5 {[%emt 0:00:00]} c5 {[%emt 0:00:00]} 4. dxc5 {[%emt 0:00:00]} e6 {[%emt 0:00:00]} 5. a3 {[%emt 0:00:00]} a5 {[%emt 0:00:00]} (5... Bxc5 $11 6. Qg4 Ne7) 6. Nc3 $16 {[%emt 0:00:00] B12: Caro-Kann: Advance Variation.} (6. Bb5+ $6 Bd7 7. Nc3 Bxc5 $11) 6... Nd7 {[%emt 0:00:00]} 7. Bb5 {[%emt 0:00:00] [#]} Qc7 $146 {[%emt 0:00:00]} ({Predecessor:} 7... Bxc5 8. Qg4 Ne7 9. Qxg7 Rg8 10. Qxh7 Rxg2 11. Nh3 Qc7 12. Kf1 Rg8 13. Bf4 Qb6 14. a4 Bd4 15. Rg1 Rxg1+ 16. Kxg1 Kd8 17. Qxf7 {1-0 (17) Mastrovasilis,D (2596)-Schubert,T (2320) Germany 2018}) 8. Nf3 {[%emt 0:00:00] White is better.} Bxc5 {[%emt 0:00:00]} 9. O-O {[%emt 0:00:00]} Ne7 {[%emt 0:00:00]} 10. Bf4 {[%emt 0:00:00]} O-O {[%emt 0:00:00]} 11. Bg3 {[%emt 0:00:00]} (11. Qe2 $14) 11... Rd8 {[%emt 0:03:44]} (11... Nf5 $1 $11) 12. Bd3 $14 {[%emt 0:04:08][%cal Od3h7]} Nf8 {[%emt 0:05:30]} 13. Re1 {[%emt 0:12:37]} Bd7 {[%emt 0:04:42]} 14. Qd2 {[%emt 0:02:56]} Rab8 {[%emt 0:05:55]} (14... Bc6 $11) 15. h4 $16 {[%emt 0:06:01]} b5 {[%emt 0:04:51][%cal Bb7b5,Bb5b4][%mdl 32]} 16. h5 {[%emt 0:02:07]} b4 {[%emt 0:01:27]} 17. Ne2 {[%emt 0:00:46]} ({White should play} 17. axb4 $14 axb4 18. Ne2) 17... Bb5 {[%emt 0:08:11]} 18. Bxb5 {[%emt 0:01:51]} Rxb5 {[%emt 0:00:01]} 19. Ned4 {[%emt 0:00:12]} Rb6 {[%emt 0:02:45]} 20. h6 {[%emt 0:02:29]} Nfg6 {[%emt 0:02:14]} (20... bxa3 $11 21. hxg7 (21. bxa3 g6 $11) 21... axb2 22. gxf8=Q+ (22. gxf8=R+ Kxf8 23. Rab1 a4 $11) 22... Kxf8) 21. hxg7 {[%emt 0:02:51] Threatens to win with Qh6.} (21. axb4 {is more complex.} Bxb4 22. c3 Bc5 23. hxg7 Kxg7 24. Qg5) 21... Kxg7 {[%emt 0:00:48]} 22. axb4 {[%emt 0:02:37]} ({But not} 22. Qg5 bxa3 23. bxa3 (23. Qf6+ Kg8 $15) 23... h6 $11) 22... axb4 {[%emt 0:02:19]} (22... Bxb4 $14 23. c3 Bc5) 23. Bf4 {[%emt 0:03:30]} ({White should try} 23. Qg5 $16) 23... Nxf4 $11 {[%emt 0:00:50]} 24. Qxf4 {[%emt 0:00:02]} Ng6 {[%emt 0:00:08]} 25. Qf6+ {[%emt 0:06:24]} Kg8 {[%emt 0:00:13] [#]} 26. Ra7 $1 {[%emt 0:02:54]} Qxa7 {[%emt 0:00:07]} 27. Qxd8+ {[%emt 0:00:05]} Bf8 {[%emt 0:00:45]} 28. g3 {[%emt 0:01:38]} Rb8 {[%emt 0:02:55]} 29. Qg5 {[%emt 0:00:08]} Rc8 {[%emt 0:00:56] Inhibits Nc6.} 30. Kg2 {[%emt 0:02:21]} Rc4 {[%emt 0:04:37]} 31. c3 {[%emt 0:01:51]} bxc3 {[%emt 0:00:38]} 32. bxc3 {[%emt 0:00:02]} Qe7 {[%emt 0:00:40]} (32... Rxc3 $2 33. Nb5 Qc5 34. Nxc3 Qxc3 35. Rc1 $18) 33. Qd2 {[%emt 0:05:29]} Qc5 {[%emt 0:04:53]} 34. Rh1 {[%emt 0:03:05]} (34. Nh2 $11) 34... Rxc3 $17 {[%emt 0:05:15]} 35. Qg5 {[%emt 0:03:44]} Qb6 {[%emt 0:01:51]} 36. Ra1 {[%emt 0:04:03]} Rc4 {[%emt 0:03:04]} 37. Qd2 {[%emt 0:03:48]} Qb4 {[%emt 0:02:00]} 38. Qe3 {[%emt 0:01:03]} Qc3 {[%emt 0:01:41]} 39. Qxc3 {[%emt 0:01:32]} Rxc3 {[%emt 0:00:01]} 40. Ra8 {[%emt 0:00:11]} Rc7 {[%emt 0:00:16]} (40... Rc5 $17) 41. Nb5 $11 {[%emt 0:16:18]} Rc6 {[%emt 0:22:38]} 42. Nfd4 $1 {[%emt 0:03:33]} Rc4 {[%emt 0:01:42]} 43. Nf3 {[%emt 0:03:52]} h5 {[%emt 0:01:46]} (43... Rb4 $5 {[%cal Rb4b5]} 44. Nd6 Rb6 $11) 44. Nd6 {[%emt 0:00:43]} Rc2 {[%emt 0:00:43]} 45. Nd4 {[%emt 0:06:39]} Rb2 {[%emt 0:01:48]} 46. Nf3 {[%emt 0:00:00]} Kg7 {[%emt 0:00:00]} 47. Ra7 {[%emt 0:00:00]} Be7 {[%emt 0:00:00]} 48. Ne8+ {[%emt 0:00:00] [#] Pair of Knights!} (48. Nd4 $11 {keeps the balance.}) 48... Kf8 $1 $17 {[%emt 0:00:00] Black continues to play with concentration.} 49. Nf6 {[%emt 0:00:00] [#]} (49. Nd6 $17 {was called for.}) 49... Rxf2+ $3 $19 {[%emt 0:00:00][%mdl 512]} 50. Kxf2 {[%emt 0:00:00]} Bc5+ {[%emt 0:00:00]} 51. Ke2 {[%emt 0:00:00]} Bxa7 {[%emt 0:00:00]} 52. Nxh5 {[%emt 0:00:00][%mdl 4096] Endgame KBN-KNN} Bb8 {[%emt 0:00:00]} 53. Nf6 {[%emt 0:00:00]} Kg7 {[%emt 0:00:00]} ({Inferior is} 53... Nxe5 54. Nxe5 Bc7 {[#]} 55. Ke3 $1 $11) 54. Ng4 {[%emt 0:00:00]} Ne7 {[%emt 0:00:00]} 55. Nh4 $2 {[%emt 0:00:00]} (55. Nf6) 55... Nc6 {[%emt 0:00:00]} 56. Nf3 {[%emt 0:00:00]} Kg6 {[%emt 0:00:00]} 57. Kd3 {[%emt 0:00:00]} Ne7 {[%emt 0:00:00]} 58. Ke3 {[%emt 0:00:00]} Bc7 {[%emt 0:00:00]} 59. Kf4 {[%emt 0:00:00]} Nf5 {[%emt 0:00:00]} (59... Kg7 $142 {White must now prevent ...Bb8.} 60. Ke3 Bb6+ 61. Ke2 Nf5) 60. Nf2 {[%emt 0:01:51]} Bb6 {[%emt 0:00:00]} 61. Nd1 {[%emt 0:00:35]} (61. Ng4 {is the only way for White.}) 61... Ne7 {[%emt 0:00:00]} (61... Nd4 $142 {aiming for ...Nxf3.} 62. Nh4+ Kh5) 62. g4 $2 {[%emt 0:00:52]} (62. Kg4) 62... Bc7 {[%emt 0:00:00]} 63. Ne3 {[%emt 0:01:42]} (63. Nc3 $142 Kg7 64. Nb5 Ng6+ 65. Ke3 Bxe5 66. Nfd4) 63... f6 {[%emt 0:00:00][%cal Bf7f6,Bf6e5,Be5e4][%mdl 32] Strongly threatening ...fxe5+.} 64. g5 {[%emt 0:02:53]} fxe5+ {[%emt 0:00:00]} 65. Kg4 {[%emt 0:00:54]} Nf5 {[%emt 0:00:00]} 66. Nf1 {[%emt 0:01:33]} e4 {[%emt 0:00:00]} 67. Ne1 {[%emt 0:00:23]} e5 {[%emt 0:00:00]} 68. Nc2 {[%emt 0:01:01]} Ba5 {[%emt 0:00:00]} 69. Nfe3 {[%emt 0:00:45]} Ne7 {[%emt 0:00:00]} (69... Nxe3+ $142 70. Nxe3 d4) 70. Ng2 {[%emt 0:00:35]} d4 {[%emt 0:00:00] ...Nf5 is the strong threat.} 71. Nf4+ {[%emt 0:00:48]} Kf7 {[%emt 0:01:06]} (71... exf4 $142 72. Kxf4 d3) 72. Ng2 {[%emt 0:00:20]} Bd2 {[%emt 0:00:58] And now ...Ke6 would win.} 73. Na3 {[%emt 0:00:20]} Ke6 {[%emt 0:00:39]} 74. Kg3 {[%emt 0:00:12]} Bxg5 {[%emt 0:00:13]} 75. Kf2 {[%emt 0:00:03]} Kd5 {[%emt 0:00:12]} 76. Nb5 {[%emt 0:00:17]} Ng6 {[%emt 0:00:32]} 77. Nc7+ {[%emt 0:00:06]} Kd6 {[%emt 0:00:08]} 78. Nb5+ {[%emt 0:00:29]} Kc6 {[%emt 0:00:21]} 79. Na3 {[%emt 0:00:09]} Kc5 {[%emt 0:00:01]} 80. Nb1 {[%emt 0:00:28]} Kb4 {[%emt 0:00:21]} 81. Ke1 {[%emt 0:00:10]} e3 {[%emt 0:00:24]} 82. Kd1 {[%emt 0:00:16]} Kb3 {[%emt 0:00:55]} 83. Ne1 {[%emt 0:00:20]} Kb2 {[%emt 0:00:13]} 84. Nf3 {[%emt 0:00:11]} Bf4 {[%emt 0:00:09]} 85. Ke2 {[%emt 0:00:22]} Kxb1 {[%emt 0:00:07]} 86. Kd3 {[%emt 0:00:03]} Kc1 {[%emt 0:00:09]} 87. Ke2 {[%emt 0:00:09]} Kc2 {[%emt 0:00:08]} 88. Ne1+ {[%emt 0:00:07]} Kc3 {[%emt 0:00:01]} 89. Nd3 {[%emt 0:00:46]} e4 {[%emt 0:00:08]} 90. Nc5 {[%emt 0:00:22]} d3+ {[%emt 0:00:08]} 91. Kd1 {[%emt 0:00:06]} e2+ {[%emt 0:00:03] Weighted Error Value: White=0.25 (precise) /Black=0.17 (very precise)} 0-1

[Event "GER-ch Youth-U16 2022"]
[Site "Willingen"]
[Date "2022.06.10"]
[Round "8.7"]
[White "Bui, Bao Anh Le"]
[Black "Albert, Markus"]
[Result "1-0"]
[ECO "C55"]
[WhiteElo "2127"]
[BlackElo "2053"]
[Annotator "TA"]
[PlyCount "115"]
[EventDate "2022.06.05"]
[EventType "swiss"]
[EventRounds "9"]
[EventCountry "GER"]
[SourceTitle "playchess.com"]
[Source "ChessBase"]
[SourceQuality "1"]
[TimeControl "40/4500+30:900+30"]

{[%evp 10,115,34,44,47,0,-7,8,26,31,59,64,55,66,79,83,78,83,102,115,91,105,99,106,83,39,131,136,142,132,244,251,237,248,250,236,235,178,175,183,335,329,409,383,407,379,375,274,366,341,373,355,402,394,405,400,493,493,619,583,640,609,587,563,664,685,823,816,774,752,1341,1359,1235,1159,1186,1100,1661,1593,1557,1422,6979,7746,6725,5375,2666,2153,12844,12840,12841,12841,12841,12841,12843,12843,12845,12845,12845,12846,12846,12846,12848,12848,12848,12847,12849,12850,12850,12850]} 1. e4 {[%emt 0:00:00]} e5 {[%emt 0:00:00]} 2. Nf3 {[%emt 0:00:00]} Nc6 {[%emt 0:00:00]} 3. Bc4 {[%emt 0:00:00]} Nf6 {[%emt 0:00:00]} 4. d3 {[%emt 0:00:00]} h6 {[%emt 0:00:00]} 5. c3 {[%emt 0:00:54]} d6 {[%emt 0:00:00]} 6. Nbd2 {[%emt 0:01:45]} g5 {[%emt 0:00:00] C55: Two Knights: 4 d3, 4 d4 exd4 5 e5 and Max Lange Attack.} 7. h4 {[%emt 0:05:58]} ({White should try} 7. h3 $14) 7... g4 $11 {[%emt 0:27:16]} 8. Nh2 {[%emt 0:00:19][%cal Bf3h2,Bh2f1,Bf1e3][%mdl 32] [#]} Rg8 $146 {[%emt 0:02:22] The position is equal.} ({Predecessor:} 8... h5 9. Qb3 Qd7 10. Nhf1 Na5 11. Qc2 Nxc4 12. Nxc4 d5 13. Nce3 dxe4 14. dxe4 b6 {0-1 (66) Esipenko,A (2720)-Shirov,A (2652) Struga 2021}) 9. Nhf1 {[%emt 0:03:29]} Nh5 {[%emt 0:02:15]} 10. g3 {[%emt 0:02:09]} Nf6 {[%emt 0:03:31]} 11. Ne3 {[%emt 0:05:43] Prevents d5.} a6 {[%emt 0:10:43]} 12. a4 {[%emt 0:02:27]} Be6 {[%emt 0:01:02]} 13. O-O {[%emt 0:18:26]} d5 {[%emt 0:14:29]} 14. exd5 {[%emt 0:09:35]} Nxd5 {[%emt 0:01:59]} 15. Ne4 {[%emt 0:01:18]} Be7 {[%emt 0:04:36] [#]} 16. Bxd5 $1 {[%emt 0:08:37]} Bxd5 {[%emt 0:00:17]} 17. Nf5 {[%emt 0:00:14] Pair of Knights!} (17. Nxd5 Qxd5 18. Nd2 (18. Bxh6 f5 $17) 18... O-O-O $17) 17... h5 {[%emt 0:03:25] Black is now going downhill.} (17... Qd7 $14 18. Nxe7 (18. Nxh6 Rg6 $17) 18... Qxe7) 18. Nxe7 $16 {[%emt 0:05:05] White is more active.} Qxe7 {[%emt 0:02:06]} 19. Bg5 {[%emt 0:00:13]} Qe6 {[%emt 0:01:17]} (19... Rxg5 $16 {was worth a try.} 20. hxg5 O-O-O) 20. Nf6+ $18 {[%emt 0:10:30]} Kf8 {[%emt 0:00:07]} 21. Nxd5 ({Not} 21. Nxg8 Kxg8 22. b4 f6 $16) ({Avoid the trap} 21. Nxh5 $2 Rxg5 22. Nf6 {[#]} (22. hxg5 $2 {perishes.} Bf3 $19) 22... Qxf6 $1 $19) 21... Qxd5 {[%emt 0:00:08]} 22. f3 {[%emt 0:04:31]} gxf3 {[%emt 0:04:02]} 23. Qxf3 {[%emt 0:00:04]} Qxf3 {[%emt 0:03:56]} 24. Rxf3 {[%emt 0:00:04]} Rxg5 $2 {[%emt 0:00:28]} (24... Rh8 25. Re1 Re8) 25. hxg5 {[%emt 0:00:04][%mdl 4096] Endgame KRR-KRN} Kg7 {[%emt 0:00:24]} 26. Raf1 {[%emt 0:00:03]} Rf8 {[%emt 0:00:07]} 27. Rf6 {[%emt 0:00:14]} Ne7 {[%emt 0:00:07]} 28. Rh6 {[%emt 0:01:07]} Nd5 {[%emt 0:00:57]} 29. Rf3 {[%emt 0:01:16]} Rd8 {[%emt 0:01:12]} 30. Rxh5 {[%emt 0:01:54]} Kg6 {[%emt 0:00:17]} 31. Rh4 {[%emt 0:02:05]} Rd7 {[%emt 0:00:45]} 32. Re4 {[%emt 0:00:25]} Re7 {[%emt 0:00:44]} 33. d4 {[%emt 0:01:08] White is clearly winning.} exd4 {[%emt 0:00:06]} 34. Rxe7 {[%emt 0:00:22]} Nxe7 {[%emt 0:00:06] KR-KN} 35. Rf6+ {[%emt 0:00:33]} Kg7 {[%emt 0:00:44]} 36. cxd4 {[%emt 0:00:13]} Nd5 {[%emt 0:00:43]} 37. Rf5 {[%emt 0:00:24]} c6 {[%emt 0:00:56]} 38. Kf2 {[%emt 0:00:36][%cal Of5d5] Hoping for Rxd5!} Kg6 {[%emt 0:00:07]} 39. g4 {[%emt 0:00:43]} Nc7 {[%emt 0:00:09]} 40. Rf6+ {[%emt 0:01:16]} Kg7 {[%emt 0:00:18]} 41. Kf3 {[%emt 0:00:00]} Ne8 {[%emt 0:00:00]} 42. Rh6 {[%emt 0:00:00]} Kg8 {[%emt 0:00:00]} 43. Ke4 {[%emt 0:00:00]} Kg7 {[%emt 0:00:00]} 44. Ke5 {[%emt 0:00:00]} a5 {[%emt 0:00:00]} 45. b3 {[%emt 0:00:00]} Nc7 {[%emt 0:00:00] Inhibits d5.} 46. Rd6 {[%emt 0:00:00][%cal Og5g6] Strongly threatening g6!} Na6 {[%emt 0:00:00]} 47. Rd7 {[%emt 0:00:00] Threatening mate with Kf5.} b5 {[%emt 0:00:00]} 48. axb5 {[%emt 0:00:00]} cxb5 {[%emt 0:00:00]} 49. Ra7 {[%emt 0:00:00]} Nb4 {[%emt 0:00:00]} 50. d5 {[%emt 0:00:00][%cal Bd4d5,Bd5d6][%mdl 32]} a4 {[%emt 0:00:00]} 51. bxa4 {[%emt 0:00:00]} bxa4 {[%emt 0:00:00]} 52. Rxa4 {[%emt 0:00:00]} Nd3+ {[%emt 0:00:00]} 53. Kf5 {[%emt 0:00:00]} Nc5 {[%emt 0:00:18]} 54. Ra7 {[%emt 0:00:00]} Kf8 {[%emt 0:00:28]} 55. d6 {[%emt 0:00:00]} Ke8 {[%emt 0:00:34]} 56. Rc7 {[%emt 0:00:00]} Ne6 {[%emt 0:01:31]} 57. Re7+ {[%emt 0:00:00]} Kf8 {[%emt 0:00:12]} 58. Rxe6 {[%emt 0:00:00] Weighted Error Value: White=0.12 (very precise) /Black=0.45} 1-0

[Event "GER-ch Youth-U16 2022"]
[Site "Willingen"]
[Date "2022.06.10"]
[Round "8.8"]
[White "Jaskulski, Jan"]
[Black "Metzdorf, Matteo"]
[Result "1/2-1/2"]
[ECO "B42"]
[WhiteElo "1727"]
[BlackElo "2009"]
[Annotator "TA"]
[PlyCount "77"]
[EventDate "2022.06.05"]
[EventType "swiss"]
[EventRounds "9"]
[EventCountry "GER"]
[SourceTitle "playchess.com"]
[Source "ChessBase"]
[SourceQuality "1"]
[TimeControl "40/4500+30:900+30"]

{[%evp 19,77,70,65,37,64,46,46,40,52,40,56,32,41,12,40,40,154,170,187,185,190,42,189,177,241,42,54,14,36,-16,-19,-54,79,70,338,331,319,302,519,592,1191,603,515,309,736,728,6299,6270,2589,1020,1478,0,1893,789,1078,321,566,0,1017,0]} 1. e4 {[%emt 0:00:00]} c5 {[%emt 0:00:00]} 2. Nf3 {[%emt 0:00:00]} e6 {[%emt 0:00:00]} 3. d4 {[%emt 0:00:00]} cxd4 {[%emt 0:00:00]} 4. Nxd4 {[%emt 0:00:00]} a6 {[%emt 0:00:00]} 5. Bd3 {[%emt 0:00:00]} Nf6 {[%emt 0:00:00]} 6. O-O {[%emt 0:00:00]} Qc7 {[%emt 0:00:00]} 7. Qe2 {[%emt 0:00:00]} d6 {[%emt 0:00:00]} 8. f4 {[%emt 0:00:00]} Nbd7 {[%emt 0:00:00]} 9. c4 {[%emt 0:00:00]} Be7 {[%emt 0:04:16]} 10. Nc3 {[%emt 0:00:00]} b6 {[%emt 0:01:19]} 11. Nf3 {[%emt 0:13:36] [#] White is more active. B42: Sicilian: Kan Variation: 5 Bd3.} g6 $146 {[%emt 0:14:30]} ({Predecessor:} 11... Bb7 12. e5 dxe5 13. fxe5 Ng4 14. Be4 Rc8 15. Bxb7 Qxb7 16. h3 Bc5+ 17. Kh1 h5 18. Bf4 Nf2+ 19. Rxf2 Bxf2 20. Qxf2 Rxc4 {1-0 (37) Vallejo Pons,F (2711)-Soskov,V (2281) Tallinn 2016}) 12. b3 {[%emt 0:27:47]} O-O {[%emt 0:13:20][%cal Ob6b5]} 13. Bb2 {[%emt 0:02:31] White is slightly better.} Bb7 {[%emt 0:02:48]} 14. Rae1 {[%emt 0:02:37]} Rad8 {[%emt 0:06:48]} 15. Kh1 {[%emt 0:01:44]} Rfe8 {[%emt 0:03:50]} 16. Bb1 {[%emt 0:08:18]} (16. Ng5 {is interesting.} Nh5 17. Qe3 Qc5 18. Qd2) 16... Qb8 {[%emt 0:05:46]} 17. Qf2 {[%emt 0:08:25]} Rf8 {[%emt 0:06:50] [#]} ({Black should try} 17... Bf8 $14) 18. Qh4 $1 $16 {[%emt 0:10:20]} Rfe8 {[%emt 0:16:18]} 19. Ng5 {[%emt 0:02:36]} Nh5 {[%emt 0:03:38]} 20. Qg4 {[%emt 0:02:23]} (20. g4 $18 Nhf6 21. f5 exf5 22. Nd5 (22. gxf5 Nh5 $16) 22... Bxd5 23. cxd5) 20... Ndf6 {[%emt 0:01:43] [#]} (20... Bf6 $14) 21. Qh3 $1 $18 {[%emt 0:00:37] Strongly threatening f5.} e5 {[%emt 0:00:27]} (21... d5 {was worth a try.}) 22. fxe5 $2 {[%emt 0:04:29]} (22. f5 $18) 22... dxe5 $14 {[%emt 0:00:25]} 23. Qe3 {[%emt 0:01:02]} (23. Qf3 $5 {[%cal Rc3d5]}) 23... Bc5 {[%emt 0:00:53]} (23... b5 $5 {[%cal Rb5c4]}) 24. Qh3 {[%emt 0:00:26]} ({Better is} 24. Qf3 $14) 24... Bc8 {[%emt 0:01:11]} 25. Qh4 {[%emt 0:00:16] Nd5 is the strong threat.} Be7 {[%emt 0:02:02]} (25... h6 $15 {keeps the upper hand.} 26. Nf3 Be7) 26. Nd5 $16 {[%emt 0:00:27]} Nxd5 {[%emt 0:01:46][%mdl 8192]} ({Black should play} 26... Qd6 $1 $14) 27. exd5 $18 {[%emt 0:00:08]} ({Inferior is} 27. cxd5 h6 28. Qf2 Bxg5 $11) 27... h6 {[%emt 0:00:34]} 28. Qf2 {[%emt 0:00:39]} f6 {[%emt 0:00:28]} (28... f5) 29. Bxg6 {[%emt 0:00:26][%cal Bb1g6,Bg6e8,Be8c6][%mdl 32]} Nf4 {[%emt 0:00:34]} 30. Bxe8 {[%emt 0:01:00]} hxg5 {[%emt 0:00:02]} 31. Bc6 {[%emt 0:00:34]} Nd3 $2 {[%emt 0:00:07] [#]} (31... Kg7 32. Qf3 Qd6) 32. Qc2 $1 {[%emt 0:00:08]} Nxe1 {[%emt 0:00:33]} (32... Bf5 33. Re3) 33. Qg6+ {[%emt 0:00:11][%mdl 64] Zwischenzug} ({Weaker is} 33. Rxe1 Kg7 34. Bd4 Bb4 $16) 33... Kh8 {[%emt 0:01:01]} 34. Qh6+ {[%emt 0:00:37]} Kg8 {[%emt 0:00:00]} 35. Qg6+ {[%emt 0:00:01]} Kh8 {[%emt 0:00:07]} 36. Rxe1 {[%emt 0:01:36]} (36. Rxf6 $142 Bxf6 37. Qxf6+ Kh7 38. Qe7+ Kg6 39. Qxd8) 36... Qd6 {[%emt 0:00:02]} 37. Qh6+ {[%emt 0:00:30]} Kg8 {[%emt 0:00:01]} 38. Qg6+ {[%emt 0:00:01]} (38. c5 $142 bxc5 39. Qg6+ Kh8 40. h4) 38... Kh8 {[%emt 0:00:01]} 39. Qh6+ $2 {[%emt 0:00:51] Weighted Error Value: White=0.99/Black=0.72} (39. Be8 $18 Bf5 40. Qxf5 Rxe8 41. Qg6) 1/2-1/2